bitfinex-derivatives/quotes_BTCF0:USTF0_20260207
["timestamp","ask_amount","ask_price","bid_price","bid_amount"]
[1770491626891,0.17779709,69462.0,69445.0,0.13622832]
[1770491627090,0.014409,69461.0,69445.0,0.13622832]
[1770491628186,0.014408,69464.0,69445.0,0.13622832]
[1770491628988,0.014409,69462.0,69445.0,0.13622832]
[1770491629188,0.014409,69462.0,69445.0,0.12181632]
[1770491630587,0.17779709,69464.0,69447.0,0.12358552]
[1770491630993,0.014408,69463.0,69447.0,0.12358552]
[1770491635502,0.17779709,69478.0,69453.0,0.11024175]
[1770491635704,0.014409,69462.0,69447.0,0.11024175]
[1770491638308,0.17779709,69466.0,69447.0,0.11024175]
[1770491638511,0.014411,69450.0,69436.0,0.11595296]
[1770491641498,0.014411,69450.0,69436.0,0.11695296]
[1770491641906,0.01441,69454.0,69436.0,0.11695296]
[1770491642406,0.17779709,69467.0,69440.0,0.1182995]
[1770491643200,0.01441,69455.0,69440.0,0.1182995]
[1770491643607,0.014411,69453.0,69440.0,0.1182995]
[1770491643807,0.01441,69457.0,69440.0,0.1182995]
[1770491644298,0.01441,69457.0,69442.0,0.11930834]
[1770491644495,0.014409,69462.0,69445.0,0.014412]
[1770491644699,0.014409,69462.0,69446.0,0.11930834]
[1770491644902,0.17779709,69466.0,69446.0,0.11930834]
[1770491645303,0.17779709,69466.0,69446.0,0.01930834]
[1770491645908,0.014408,69464.0,69446.0,0.01930834]
[1770491646308,0.014409,69462.0,69446.0,0.01930834]
[1770491660622,0.014408,69465.0,69446.0,0.01930834]
[1770491662325,0.014408,69463.0,69446.0,0.01930834]
[1770491663628,0.18717082,69465.0,69446.0,0.01930834]
[1770491663826,0.18717082,69459.0,69440.0,0.03314699]
[1770491664621,0.014409,69458.0,69442.0,0.03397835]
[1770491665927,0.014409,69461.0,69444.0,0.03497062]
[1770491667427,0.014409,69461.0,69446.0,0.03693307]
[1770491674736,0.014408,69464.0,69446.0,0.03693307]
[1770491675337,0.014409,69462.0,69446.0,0.03693307]
[1770491676634,0.19353043,69462.0,69446.0,0.03693307]
[1770491680938,0.014409,69460.0,69446.0,0.03693307]
[1770491681345,0.20077687,69460.0,69446.0,0.03693307]
[1770491684642,0.1849512,69457.0,69442.0,0.11505855]
[1770491684845,0.1849512,69457.0,69443.0,0.03172009]
[1770491685546,0.1849512,69457.0,69444.0,0.03212461]
[1770491685748,0.014409,69461.0,69444.0,0.03212461]
[1770491686245,0.014409,69459.0,69444.0,0.03212461]
[1770491687249,0.20042665,69459.0,69444.0,0.03212461]
[1770491687838,0.18601217,69456.0,69440.0,0.014413]
[1770491689149,0.18601217,69456.0,69437.0,0.03068398]
[1770491689150,0.18535609,69454.0,69437.0,0.04509798]
[1770491689943,0.18535034,69452.0,69437.0,0.03068398]
[1770491690144,0.18535034,69452.0,69439.0,0.014413]
[1770491690342,0.18535034,69452.0,69440.0,0.03382825]
[1770491693949,0.18535034,69452.0,69439.0,0.001]
[1770491694756,0.18535034,69452.0,69440.0,0.001]
[1770491695654,0.18535034,69452.0,69435.0,0.05047001]
[1770491695846,0.18535034,69452.0,69436.0,0.03643288]
[1770491697367,0.01441,69456.0,69438.0,0.03670113]
[1770491697567,0.1996536,69456.0,69439.0,0.03670113]
[1770491700068,0.18913584,69453.0,69438.0,0.11505855]
[1770491700268,0.1761275,69439.0,69431.0,5.5e-07]
[1770491700464,0.1761275,69439.0,69427.0,5.5e-07]
[1770491700770,0.1905385,69453.0,69435.0,0.18347157]
[1770491701170,0.014411,69450.0,69435.0,0.18347157]
[1770491701469,0.1761275,69449.0,69435.0,0.18347157]
[1770491702567,0.014411,69450.0,69435.0,0.18347157]
[1770491703065,0.01441,69453.0,69435.0,0.18347157]
[1770491704369,0.01441,69453.0,69435.0,0.19788557]
[1770491704766,0.1905375,69453.0,69435.0,0.18347157]
[1770491704968,0.1905385,69450.0,69435.0,0.18347157]
[1770491705272,0.1761275,69450.0,69435.0,0.18347157]
[1770491707476,0.20150096,69456.0,69435.0,0.18347157]
[1770491708476,0.20150096,69456.0,69440.0,0.18510831]
[1770491709080,0.01441,69458.0,69440.0,0.18510831]
[1770491709280,0.014409,69460.0,69442.0,0.18510831]
[1770491710981,0.014408,69463.0,69444.0,0.18510831]
[1770491711483,0.014408,69465.0,69446.0,0.20466686]
[1770491711782,0.014402,69496.0,69454.0,0.20466686]
[1770491711783,0.19861276,69472.0,69454.0,0.20466686]
[1770491712376,0.19861276,69472.0,69456.0,0.20466686]
[1770491712571,0.014406,69475.0,69456.0,0.20466686]
[1770491713083,0.19861276,69472.0,69450.0,0.20466686]
[1770491713271,0.19861276,69463.0,69444.0,0.20466686]
[1770491714086,0.19861276,69461.0,69444.0,0.20466686]
[1770491715186,0.19861276,69461.0,69444.0,0.21907886]
[1770491716476,0.19861276,69455.0,69434.0,0.20466686]
[1770491716784,0.19861276,69452.0,69434.0,0.20466686]
[1770491717081,0.19861276,69448.0,69434.0,0.20466686]
[1770491718181,0.19861276,69448.0,69435.0,0.014414]
[1770491718489,0.01441,69458.0,69439.0,0.20466686]
[1770491718688,0.01441,69456.0,69439.0,0.20466686]
[1770491718889,0.21302276,69456.0,69439.0,0.20466686]
[1770491719086,0.21302276,69454.0,69439.0,0.20466686]
[1770491719391,0.014411,69452.0,69439.0,0.20466686]
[1770491719590,0.21302376,69452.0,69439.0,0.20466686]
[1770491721992,0.21302376,69452.0,69433.0,0.21908186]
[1770491722693,0.19861276,69449.0,69433.0,0.20466686]
[1770491727595,0.014412,69448.0,69433.0,0.20466686]
[1770491727799,0.21302476,69448.0,69433.0,0.20466686]
[1770491728398,0.014411,69451.0,69433.0,0.21908086]
[1770491728598,0.19861276,69458.0,69437.0,0.20466686]
[1770491728991,0.014411,69453.0,69437.0,0.20466686]
[1770491729597,0.014411,69451.0,69437.0,0.20466686]
[1770491731202,0.21302476,69447.0,69427.0,5.5e-07]
[1770491732399,0.21302476,69447.0,69429.0,0.20466686]
[1770491734103,0.19861276,69447.0,69431.0,0.20466686]
[1770491734303,0.014411,69450.0,69431.0,0.20466686]
[1770491734602,0.21302376,69450.0,69431.0,0.20466686]
[1770491738012,0.014407,69469.0,69427.0,5.5e-07]
[1770491738013,0.19761422,69442.0,69427.0,5.5e-07]
[1770491741205,0.21202722,69442.0,69427.0,5.5e-07]
[1770491744399,0.19761422,69442.0,69427.0,5.5e-07]
[1770491748303,0.19761422,69448.0,69421.0,0.19792209]
[1770491748510,0.21202622,69448.0,69426.0,0.19792209]
[1770491749502,0.21202622,69448.0,69428.0,0.19792209]
[1770491750706,0.19761422,69453.0,69436.0,0.19792209]
[1770491750902,0.01441,69455.0,69436.0,0.19792209]
[1770491753709,0.01441,69455.0,69438.0,0.19792209]
[1770491754510,0.21202422,69455.0,69438.0,0.19792209]
[1770491759814,0.21202422,69455.0,69436.0,0.014414]
[1770491760209,0.21202422,69455.0,69436.0,0.21233609]
[1770491763419,0.19761422,69455.0,69436.0,0.21233609]
[1770491765011,0.014409,69458.0,69439.0,0.19792209]
[1770491765212,0.19761422,69461.0,69439.0,0.19792209]
[1770491765416,0.014409,69460.0,69442.0,0.19792209]
[1770491765710,0.19761422,69461.0,69444.0,0.22541607]
[1770491766314,0.014409,69460.0,69444.0,0.22541607]
[1770491771512,0.21732451,69459.0,69444.0,0.22541607]
[1770491773221,0.014409,69460.0,69444.0,0.22541607]
[1770491773923,0.014408,69463.0,69446.0,0.23110986]
[1770491775320,0.014409,69461.0,69446.0,0.23110986]
[1770491775525,0.21732451,69464.0,69446.0,0.23110986]
[1770491776317,0.014409,69460.0,69446.0,0.23110986]
[1770491778525,0.014409,69460.0,69446.0,0.23210986]
[1770491779721,0.014408,69467.0,69450.0,0.23110986]
[1770491780028,0.21732451,69469.0,69452.0,0.23110986]
[1770491780524,0.014406,69473.0,69454.0,0.23110986]
[1770491781718,0.21732451,69475.0,69459.0,0.23110986]
[1770491781917,0.014406,69476.0,69459.0,0.23110986]
[1770491782123,0.21732451,69494.0,69471.0,0.23110986]
[1770491782425,0.0144,69501.0,69479.0,0.23110986]
[1770491782727,0.23172451,69501.0,69479.0,0.23110986]
[1770491783029,0.21732451,69501.0,69479.0,0.23110986]
[1770491786332,0.21732451,69501.0,69481.0,0.014405]
[1770491786527,0.21732451,69501.0,69481.0,0.24551486]
[1770491787218,0.23172351,69506.0,69481.0,0.24551486]
[1770491788031,0.21732451,69501.0,69481.0,0.23110986]
[1770491788230,0.21732451,69498.0,69481.0,0.23110986]
[1770491788426,0.21732451,69496.0,69476.0,0.23110986]
[1770491788736,0.21732451,69494.0,69476.0,0.23110986]
[1770491789325,0.23172551,69500.0,69476.0,0.23110986]
[1770491789833,0.21732451,69500.0,69476.0,0.24551586]
[1770491790723,0.21732451,69508.0,69480.0,0.23110986]
[1770491791640,0.21732451,69503.0,69483.0,0.23110986]
[1770491793034,0.21732451,69501.0,69483.0,0.23110986]
[1770491794138,0.21732451,69499.0,69483.0,0.23110986]
[1770491794330,0.23172651,69495.0,69474.0,0.23110986]
[1770491794639,0.21732451,69495.0,69476.0,0.23110986]
[1770491795728,0.21732451,69495.0,69463.0,0.11428207]
[1770491795729,0.23724698,69480.0,69459.0,0.22068354]
[1770491796733,0.23724698,69476.0,69459.0,0.22068354]
[1770491796928,0.23724698,69476.0,69456.0,0.01441]
[1770491797126,0.049,69452.0,69445.0,0.22068354]
[1770491797329,0.23724698,69470.0,69445.0,0.22068354]
[1770491797738,0.23724698,69470.0,69447.0,0.22068354]
[1770491797934,0.014408,69465.0,69447.0,0.22068354]
[1770491798131,0.23724698,69464.0,69438.0,0.22068354]
[1770491798333,0.23724698,69462.0,69438.0,0.22068354]
[1770491798529,0.23724698,69462.0,69445.0,0.001]
[1770491799234,0.23724698,69460.0,69438.0,0.22068354]
[1770491800142,0.23724698,69467.0,69443.0,0.22068354]
[1770491800341,0.014407,69472.0,69449.0,0.22068354]
[1770491800640,0.25165398,69472.0,69449.0,0.22068354]
[1770491801535,0.25165398,69469.0,69449.0,0.22068354]
[1770491801742,0.25165498,69465.0,69441.0,0.22068354]
[1770491804845,0.25165498,69465.0,69442.0,0.23509654]
[1770491805242,0.23724698,69465.0,69445.0,0.23509554]
[1770491805549,0.23724698,69472.0,69451.0,0.22068354]
[1770491805741,0.014406,69477.0,69455.0,0.22068354]
[1770491806046,0.23724698,69479.0,69457.0,0.22068354]
[1770491806237,0.23724698,69486.0,69462.0,0.23509154]
[1770491806439,0.014404,69482.0,69462.0,0.22068354]
[1770491808038,0.25165298,69476.0,69457.0,0.11428207]
[1770491808239,0.014405,69480.0,69457.0,0.23509354]
[1770491808441,0.23724698,69495.0,69464.0,0.22068354]
[1770491808641,0.014403,69489.0,69469.0,0.22068354]
[1770491808845,0.014404,69487.0,69469.0,0.22068354]
[1770491809543,0.23724698,69493.0,69469.0,0.22068354]
[1770491810150,0.014403,69488.0,69469.0,0.22068354]
[1770491810349,0.23724698,69487.0,69469.0,0.22068354]
[1770491810542,0.25165098,69486.0,69469.0,0.22068354]
[1770491810745,0.014404,69484.0,69469.0,0.22068354]
[1770491811449,0.25165098,69484.0,69463.0,0.11428207]
[1770491812049,0.25165098,69484.0,69463.0,0.33496561]
[1770491813550,0.25165198,69480.0,69460.0,0.11428207]
[1770491813739,0.25165198,69480.0,69459.0,0.11428207]
[1770491813945,0.25165198,69478.0,69459.0,0.11428207]
[1770491816143,0.25165198,69478.0,69459.0,0.33496561]
[1770491816340,0.25165198,69478.0,69459.0,0.22068354]
[1770491816648,0.014406,69476.0,69459.0,0.22068354]
[1770491818553,0.23724698,69478.0,69459.0,0.22068354]
[1770491820448,0.014406,69475.0,69459.0,0.22068354]
[1770491820650,0.25165298,69475.0,69453.0,0.23509354]
[1770491821154,0.014405,69479.0,69456.0,0.23509354]
[1770491821356,0.014406,69476.0,69456.0,0.22068354]
[1770491821545,0.014406,69474.0,69456.0,0.22068354]
[1770491822548,0.25165398,69471.0,69456.0,0.22068354]
[1770491824352,0.014407,69469.0,69456.0,0.22068354]
[1770491824554,0.25165398,69469.0,69450.0,0.22068354]
[1770491827447,0.23724698,69469.0,69450.0,0.23509454]
[1770491827654,0.26719915,69475.0,69457.0,0.23318891]
[1770491827953,0.014407,69472.0,69457.0,0.23318891]
[1770491828460,0.26719915,69475.0,69458.0,0.23318891]
[1770491831150,0.014406,69472.0,69458.0,0.23318891]
[1770491831345,0.26758524,69472.0,69458.0,0.23318891]
[1770491831550,0.26758524,69472.0,69456.0,0.11428207]
[1770491831755,0.26758524,69472.0,69455.0,0.11428207]
[1770491834155,0.26758524,69472.0,69455.0,0.34636947]
[1770491834356,0.26758524,69472.0,69456.0,0.2320874]
[1770491835958,0.26758524,69472.0,69456.0,0.34636947]
[1770491836257,0.26758524,69472.0,69456.0,0.2320874]
[1770491838156,0.26758624,69470.0,69452.0,0.11428207]
[1770491838357,0.26758624,69470.0,69451.0,0.11428207]
[1770491838551,0.26758624,69470.0,69451.0,0.34636947]
[1770491838758,0.26758624,69470.0,69452.0,0.2320874]
[1770491839958,0.014405,69478.0,69461.0,0.2320874]
[1770491840857,0.014406,69476.0,69461.0,0.2320874]
[1770491841153,0.26758524,69476.0,69456.0,0.2320874]
[1770491842260,0.26758524,69476.0,69457.0,0.2320874]
[1770491843658,0.014406,69473.0,69457.0,0.2320874]
[1770491843859,0.26758524,69473.0,69457.0,0.2320874]
[1770491844258,0.25317924,69473.0,69457.0,0.2320874]
[1770491844459,0.014406,69476.0,69457.0,0.2320874]
[1770491845562,0.26758524,69476.0,69457.0,0.2320874]
[1770491846858,0.25317924,69476.0,69457.0,0.2320874]
[1770491847165,0.25317924,69487.0,69464.0,0.2320874]
[1770491847360,0.014405,69480.0,69464.0,0.2320874]
[1770491847560,0.014406,69476.0,69464.0,0.2320874]
[1770491848165,0.014406,69473.0,69458.0,0.34636947]
[1770491848366,0.26758524,69473.0,69458.0,0.2320874]
[1770491848665,0.26758524,69473.0,69453.0,0.17766871]
[1770491848666,0.26758524,69473.0,69455.0,0.1151362]
[1770491849267,0.26758524,69473.0,69454.0,0.1151362]
[1770491849661,0.26758524,69473.0,69454.0,0.3472236]
[1770491850762,0.014405,69477.0,69456.0,0.1151362]
[1770491850963,0.014406,69475.0,69457.0,0.2320874]
[1770491852364,0.014405,69479.0,69457.0,0.3472236]
[1770491852564,0.014405,69479.0,69458.0,0.2320874]
[1770491853665,0.014405,69479.0,69458.0,0.3472236]
[1770491853866,0.014405,69479.0,69459.0,0.2320874]
[1770491854164,0.014406,69477.0,69459.0,0.2320874]
[1770491854966,0.26758424,69480.0,69459.0,0.2320874]
[1770491855167,0.014405,69480.0,69459.0,0.2320874]
[1770491857072,0.014405,69478.0,69459.0,0.2320874]
[1770491857668,0.014405,69478.0,69460.0,0.25180324]
[1770491859478,0.014405,69481.0,69460.0,0.26621224]
[1770491859971,0.26217653,69492.0,69464.0,0.25180324]
[1770491860171,0.014404,69483.0,69464.0,0.25180324]
[1770491860374,0.014405,69481.0,69464.0,0.25180324]
[1770491863180,0.014405,69477.0,69464.0,0.25180324]
[1770491863471,0.27658153,69477.0,69464.0,0.25180324]
[1770491863970,0.27658153,69477.0,69458.0,0.005]
[1770491864270,0.26217653,69475.0,69458.0,0.005]
[1770491864476,0.26217653,69475.0,69455.0,0.1151362]
[1770491865479,0.26217653,69468.0,69453.0,0.1151362]
[1770491865678,0.27658453,69465.0,69449.0,0.1151362]
[1770491865972,0.26217653,69465.0,69450.0,0.25180324]
[1770491868577,0.26217653,69471.0,69450.0,0.26621424]
[1770491868765,0.014406,69473.0,69450.0,0.26621424]
[1770491870871,0.26217653,69477.0,69450.0,0.26621424]
[1770491871878,0.014406,69475.0,69454.0,0.25180324]
[1770491872274,0.014405,69479.0,69458.0,0.25180324]
[1770491873368,0.014405,69479.0,69458.0,0.26621224]
[1770491877672,0.014405,69479.0,69459.0,0.25180324]
[1770491878478,0.26217653,69474.0,69456.0,0.1151362]
[1770491878684,0.26217653,69474.0,69457.0,0.25180324]
[1770491880090,0.014403,69491.0,69457.0,0.25180324]
[1770491880091,0.014405,69478.0,69458.0,0.25180324]
[1770491880291,0.014405,69478.0,69458.0,0.36693944]
[1770491880495,0.014405,69478.0,69459.0,0.25180324]
[1770491880695,0.014405,69482.0,69464.0,0.25180324]
[1770491881686,0.014402,69493.0,69471.0,0.25180324]
[1770491881987,0.26217653,69502.0,69476.0,0.25180324]
[1770491881988,0.014401,69497.0,69476.0,0.25180324]
[1770491883382,0.014401,69497.0,69478.0,0.25180324]
[1770491884189,0.27657653,69505.0,69484.0,0.25180324]
[1770491884388,0.0144,69502.0,69484.0,0.25180324]
[1770491887091,0.25849406,69490.0,69469.0,0.26488558]
[1770491887288,0.014404,69486.0,69469.0,0.26488558]
[1770491888994,0.014404,69483.0,69469.0,0.26488558]
[1770491889986,0.27289806,69486.0,69469.0,0.26488558]
[1770491891883,0.25082739,69482.0,69463.0,0.25511271]
[1770491892088,0.014405,69481.0,69463.0,0.25511271]
[1770491892798,0.014404,69485.0,69463.0,0.26952071]
[1770491894400,0.014404,69483.0,69463.0,0.26952071]
[1770491896104,0.014404,69483.0,69456.0,0.1151362]
[1770491896105,0.014404,69486.0,69468.0,0.25511271]
[1770491897494,0.014401,69500.0,69468.0,0.25511271]
[1770491897495,0.014404,69484.0,69468.0,0.25511271]
[1770491900707,0.25082739,69500.0,69472.0,0.25511271]
[1770491900898,0.25082739,69500.0,69474.0,0.25511271]
[1770491900899,0.014403,69488.0,69474.0,0.25511271]
[1770491901704,0.014403,69491.0,69474.0,0.25511271]
[1770491902795,0.014402,69496.0,69479.0,0.25511271]
[1770491903002,0.014402,69496.0,69481.0,0.25511271]
[1770491905298,0.014401,69499.0,69481.0,0.25511271]
[1770491906695,0.25082739,69496.0,69475.0,0.25511271]
[1770491906890,0.26522939,69493.0,69475.0,0.26951871]
[1770491910911,0.26522939,69493.0,69475.0,0.25511271]
[1770491914409,0.014403,69491.0,69475.0,0.25511271]
[1770491914604,0.25082739,69493.0,69475.0,0.26951871]
[1770491915408,0.014402,69492.0,69475.0,0.25511271]
[1770491915911,0.28852882,69492.0,69475.0,0.25511271]
[1770491916111,0.28852982,69490.0,69475.0,0.25511271]
[1770491917816,0.28852982,69490.0,69467.0,0.27505968]
[1770491918809,0.27412682,69487.0,69467.0,0.27505968]
[1770491919018,0.28853082,69485.0,69467.0,0.27505968]
[1770491922217,0.27412682,69485.0,69467.0,0.27505968]
[1770491923312,0.014405,69481.0,69467.0,0.27505968]
[1770491926216,0.28853182,69479.0,69462.0,0.27505968]
[1770491927718,0.28853182,69479.0,69464.0,0.1151362]
[1770491927918,0.28853182,69479.0,69463.0,0.39019588]
[1770491928110,0.28853382,69469.0,69459.0,2e-07]
[1770491928307,0.28853482,69467.0,69451.0,0.27505968]
[1770491932723,0.27412682,69467.0,69451.0,0.27505968]
[1770491932919,0.27412682,69473.0,69453.0,0.27505968]
[1770491933220,0.014407,69472.0,69453.0,0.27505968]
[1770491933918,0.014405,69478.0,69461.0,0.27505968]
[1770491937323,0.014405,69482.0,69461.0,0.28946868]
[1770491937724,0.27412682,69485.0,69461.0,0.28946868]
[1770491938523,0.014404,69484.0,69461.0,0.28946868]
[1770491939213,0.014403,69488.0,69465.0,0.27505968]
[1770491939419,0.014403,69489.0,69469.0,0.27505968]
[1770491939927,0.014404,69486.0,69469.0,0.27505968]
[1770491942732,0.27412682,69480.0,69456.0,0.27505968]
[1770491943623,0.014406,69472.0,69456.0,0.27505968]
[1770491944029,0.014407,69469.0,69456.0,0.27505968]
[1770491947727,0.29411587,69469.0,69456.0,0.27505968]
[1770491950824,0.014406,69473.0,69456.0,0.27505968]
[1770491954921,0.014403,69488.0,69463.0,0.26972197]
[1770491955130,0.27686932,69489.0,69463.0,0.28412997]
[1770491955131,0.014404,69485.0,69463.0,0.28412997]
[1770491955333,0.27686932,69489.0,69463.0,0.28412997]
[1770491955532,0.27686932,69489.0,69467.0,0.26972197]
[1770491955533,0.29127232,69489.0,69467.0,0.26972197]
[1770491958831,0.0144,69504.0,69481.0,0.26972197]
[1770491962938,0.29126932,69504.0,69481.0,0.26972197]
[1770491963538,0.29127032,69501.0,69481.0,0.26972197]
[1770491964244,0.27686932,69486.0,69468.0,0.28412897]
[1770491964432,0.27686932,69486.0,69468.0,0.26972197]
[1770491966745,0.27686932,69478.0,69457.0,0.26972197]
[1770491967042,0.27686932,69476.0,69457.0,0.26972197]
[1770491967538,0.014406,69475.0,69457.0,0.26972197]
[1770491967942,0.27686932,69476.0,69457.0,0.26972197]
[1770491968135,0.014405,69479.0,69457.0,0.28413197]
[1770491970540,0.072005,69501.0,69446.0,0.17266871]
[1770491970541,0.014404,69486.0,69466.0,0.26972197]
[1770491971339,0.014404,69486.0,69468.0,0.26972197]
[1770491971540,0.014404,69484.0,69468.0,0.26972197]
[1770491971741,0.014405,69481.0,69468.0,0.26972197]
[1770491972643,0.014406,69476.0,69459.0,0.26972197]
[1770491973937,0.29127532,69476.0,69459.0,0.26972197]
[1770491977942,0.014406,69474.0,69459.0,0.26972197]
[1770491980648,0.014407,69468.0,69450.0,0.27895956]
[1770491982150,0.014407,69471.0,69452.0,0.27895956]
[1770491982551,0.014407,69471.0,69452.0,0.17895956]
[1770491984547,0.014408,69465.0,69452.0,0.17895956]
[1770491986051,0.28249649,69465.0,69445.0,0.014412]
[1770491986354,0.28249649,69458.0,69443.0,0.17895956]
[1770491986554,0.014409,69459.0,69443.0,0.17895956]
[1770491986947,0.01441,69456.0,69443.0,0.17895956]
[1770491990053,0.014409,69460.0,69443.0,0.17895956]
[1770491990956,0.28249649,69464.0,69443.0,0.17895956]
[1770491991558,0.28249649,69448.0,69431.0,0.1148532]
[1770491991859,0.014408,69466.0,69427.0,0.29337556]
[1770491991860,0.014412,69445.0,69427.0,0.27895956]
[1770491995958,0.014412,69445.0,69425.0,0.11486729]
[1770491995959,0.01441,69457.0,69439.0,0.27895956]
[1770491996259,0.014409,69462.0,69443.0,0.27895956]
[1770491996449,0.00052,69505.0,69451.0,0.27895956]
[1770491996450,0.014407,69470.0,69451.0,0.27895956]
[1770491996655,0.014406,69473.0,69453.0,0.27895956]
[1770491997257,0.014406,69477.0,69455.0,0.27895956]
[1770491997457,0.014405,69480.0,69461.0,0.27895956]
[1770491997766,0.014405,69478.0,69461.0,0.27895956]
[1770491997970,0.014405,69482.0,69461.0,0.27895956]
[1770491999360,0.014404,69486.0,69465.0,0.27895956]
[1770491999662,0.014404,69483.0,69465.0,0.27895956]
[1770492000764,0.014403,69491.0,69467.0,0.27895956]
[1770492001363,0.014403,69488.0,69469.0,0.27895956]
[1770492003459,0.014404,69485.0,69469.0,0.27895956]
[1770492013674,0.28743766,69485.0,69469.0,0.27895956]
[1770492014077,0.014404,69482.0,69469.0,0.27895956]
[1770492015175,0.27303366,69485.0,69463.0,0.014408]
[1770492015176,0.014406,69475.0,69463.0,0.28919332]
[1770492015370,0.014406,69475.0,69463.0,0.18919332]
[1770492016179,0.014406,69475.0,69463.0,0.08919332]
[1770492017576,0.014409,69460.0,69451.0,3.2e-07]
[1770492017776,0.014409,69460.0,69442.0,0.1841874]
[1770492018472,0.01441,69457.0,69442.0,0.1841874]
[1770492020274,0.01441,69455.0,69442.0,0.1841874]
[1770492021581,0.014411,69452.0,69442.0,0.1841874]
[1770492021976,0.27303366,69460.0,69430.0,0.11486729]
[1770492021977,0.014411,69449.0,69430.0,0.02731112]
[1770492022676,0.014411,69453.0,69434.0,0.02352669]
[1770492022877,0.014408,69466.0,69436.0,0.02352669]
[1770492023082,0.014408,69463.0,69439.0,0.01918148]
[1770492024376,0.014408,69463.0,69440.0,0.014413]
[1770492027190,0.014408,69467.0,69446.0,0.014412]
[1770492027391,0.29369805,69477.0,69449.0,0.014411]
[1770492028092,0.29369805,69477.0,69453.0,0.01441]
[1770492028093,0.014406,69476.0,69453.0,0.01441]
[1770492028284,0.014406,69474.0,69453.0,0.01441]
[1770492028481,0.014406,69474.0,69450.0,0.014411]
[1770492028885,0.014404,69482.0,69460.0,0.014409]
[1770492029391,0.014405,69479.0,69456.0,0.01441]
[1770492029585,0.014405,69479.0,69458.0,0.014409]
[1770492029787,0.014404,69483.0,69452.0,0.11486729]
[1770492030086,0.00187596,69468.0,69452.0,0.11486729]
[1770492030289,0.00187596,69468.0,69457.0,0.014409]
[1770492030492,9.1e-07,69463.0,69457.0,0.014409]
[1770492030790,0.014405,69481.0,69457.0,0.014409]
[1770492031094,0.014406,69473.0,69451.0,0.014411]
[1770492031280,0.014406,69473.0,69454.0,0.01441]
[1770492031488,0.29342144,69475.0,69454.0,0.01441]
[1770492033288,0.29342144,69475.0,69450.0,0.11486729]
[1770492033586,0.28184069,69487.0,69462.0,0.014408]
[1770492033787,0.014404,69484.0,69464.0,0.014408]
[1770492034589,0.29662926,69484.0,69460.0,0.014409]
[1770492034789,0.29662926,69484.0,69456.0,0.11486729]
[1770492036495,0.29662926,69484.0,69460.0,0.014409]
[1770492037097,0.29662926,69484.0,69465.0,0.014408]
[1770492037394,0.29662926,69484.0,69458.0,0.11486729]
[1770492037695,0.29662926,69484.0,69464.0,0.014408]
[1770492040595,0.28875505,69480.0,69460.0,0.014409]
[1770492042496,0.30356461,69479.0,69460.0,0.014409]
[1770492043403,0.28915961,69479.0,69462.0,0.014408]
[1770492047105,0.29085781,69472.0,69456.0,0.11486729]
[1770492047405,0.30526481,69472.0,69453.0,0.01441]
[1770492047801,0.29085781,69472.0,69453.0,0.01441]
[1770492054106,0.30512287,69470.0,69449.0,0.12937972]
[1770492054414,0.29071587,69455.0,69439.0,0.01496872]
[1770492054604,0.29071587,69455.0,69435.0,0.014414]
[1770492054804,0.29071587,69455.0,69438.0,0.014414]
[1770492055706,0.2912973,69464.0,69441.0,0.014413]
[1770492056014,0.014407,69470.0,69443.0,0.17266871]
[1770492056312,0.014407,69470.0,69444.0,0.21640303]
[1770492056507,0.014407,69470.0,69445.0,0.21640303]
[1770492056708,0.014407,69470.0,69446.0,0.21640303]
[1770492056916,0.014407,69470.0,69443.0,0.17266871]
[1770492057118,0.30902689,69470.0,69444.0,0.21638399]
[1770492057305,0.30902689,69470.0,69445.0,0.21638399]
[1770492057505,0.30902689,69470.0,69446.0,0.21638399]
[1770492057714,0.29461989,69465.0,69443.0,0.014412]
[1770492058408,0.29486437,69463.0,69443.0,0.014412]
[1770492059414,0.29486437,69463.0,69430.0,0.17266871]
[1770492059616,0.29486437,69463.0,69431.0,0.38906424]
[1770492059916,0.29440684,69461.0,69432.0,0.21639553]
[1770492060111,0.29440684,69461.0,69438.0,0.014413]
[1770492060312,0.29440684,69459.0,69438.0,0.014413]
[1770492060616,0.29440684,69457.0,69438.0,0.014413]
[1770492061010,0.29440684,69457.0,69435.0,0.014414]
[1770492062315,0.29440684,69457.0,69423.0,0.07255946]
[1770492062617,0.2946036,69455.0,69434.0,0.014414]
[1770492064715,0.2946036,69455.0,69434.0,0.01206452]
[1770492067428,0.31044591,69450.0,69419.0,0.28525946]
[1770492067721,0.31044591,69450.0,69423.0,0.2138859]
[1770492068026,0.29626123,69457.0,69435.0,0.014414]
[1770492068216,0.01441,69456.0,69433.0,0.014414]
[1770492068413,0.01441,69456.0,69420.0,0.15974702]
[1770492068414,0.31067123,69454.0,69429.0,0.014415]
[1770492068718,0.31067223,69452.0,69431.0,0.014415]
[1770492071230,0.29626123,69452.0,69433.0,0.014414]
[1770492073129,0.29626123,69452.0,69430.0,0.014415]
[1770492075131,0.29626123,69452.0,69436.0,0.014414]
[1770492075331,0.29626123,69452.0,69436.0,0.01406049]
[1770492076535,0.29626123,69452.0,69420.0,0.15974702]
[1770492076536,0.29053004,69466.0,69445.0,0.014412]
[1770492077139,0.29053004,69466.0,69445.0,0.01425831]
[1770492078041,0.014408,69465.0,69445.0,0.01425831]
[1770492078244,0.29107629,69464.0,69445.0,0.01425831]
[1770492079243,0.29107629,69464.0,69442.0,0.014413]
[1770492080447,0.29107629,69464.0,69445.0,0.014412]
[1770492081341,0.30548429,69464.0,69441.0,0.01425938]
[1770492081547,0.29211695,69460.0,69437.0,0.014414]
[1770492081846,0.29211695,69460.0,69438.0,0.21639746]
[1770492082044,0.29229677,69455.0,69439.0,0.21639746]
[1770492082348,0.29229677,69455.0,69413.0,0.086514]
[1770492082349,0.22016428,69448.0,69428.0,0.014415]
[1770492085650,0.22016428,69448.0,69425.0,0.014416]
[1770492086243,0.22016428,69448.0,69425.0,0.01421621]
[1770492087250,0.22016428,69448.0,69425.0,0.22810211]
[1770492087750,0.22016428,69448.0,69425.0,0.01421621]
[1770492087952,0.22016428,69448.0,69428.0,0.014416]
[1770492090943,0.22156484,69446.0,69421.0,0.2138859]
[1770492091150,0.014409,69451.0,69419.0,0.28525946]
[1770492091151,0.22156484,69463.0,69433.0,0.014413]
[1770492091348,0.22156484,69454.0,69433.0,0.014413]
[1770492092247,0.22156484,69454.0,69426.0,0.2138859]
[1770492092248,0.22156484,69454.0,69426.0,0.15175992]
[1770492092452,0.22156484,69454.0,69433.0,0.001]
[1770492093053,0.22156484,69454.0,69431.0,0.014413]
[1770492093252,0.22156484,69454.0,69433.0,0.001]
[1770492094152,0.22156484,69454.0,69433.0,0.015413]
[1770492095455,0.22156484,69454.0,69433.0,0.01521321]